bitfinex/quotes_ETHUSD_20240907
["timestamp","ask_amount","ask_price","bid_price","bid_amount"]
[1725745410381,4.39627,2274.7,2274.5,2.4586]
[1725745410546,8.79263,2274.7,2274.5,2.4586]
[1725745412849,1.58461493,2274.9,2274.5,2.4586]
[1725745412850,4.39594,2274.9,2274.5,2.4586]
[1725745413050,4.39564,2275.0,2274.5,6.00446]
[1725745413410,4.39564,2275.0,2274.6,0.08791697]
[1725745413544,8.79134,2275.0,2274.6,3.08791697]
[1725745413941,8.79136,2275.0,2274.6,3.08791697]
[1725745414188,4.39564,2275.0,2274.7,1.0488937]
[1725745416692,10.37534493,2275.2,2274.7,1.0488937]
[1725745416892,4.39542,2275.1,2274.7,1.13680643]
[1725745423796,4.39542,2275.1,2274.7,5.53298643]
[1725745424106,4.39542,2275.1,2274.8,3.0]
[1725745424310,4.39572,2275.0,2274.8,3.0]
[1725745424608,4.39572,2275.0,2274.7,3.0]
[1725745424609,4.39581,2274.9,2274.7,3.0]
[1725745424816,4.39581,2274.9,2274.6,3.0]
[1725745424966,4.39581,2274.9,2274.6,4.479762]
[1725745430296,4.39563,2275.0,2274.6,4.479762]
[1725745430829,4.39544,2275.1,2274.6,8.876052]
[1725745431208,8.79095,2275.1,2274.6,8.876052]
[1725745431941,5.97991493,2275.2,2274.7,6.75456762]
[1725745432123,5.97991493,2275.2,2274.8,3.0]
[1725745432595,4.39542,2275.1,2274.8,3.0]
[1725745433494,4.39562,2275.0,2274.8,3.0]
[1725745433732,4.39562,2275.0,2274.7,5.2705]
[1725745434037,4.39562,2275.0,2274.8,3.0]
[1725745434202,4.39562,2275.0,2274.6,3.0]
[1725745436904,4.39592,2274.9,2274.6,3.0]
[1725745437112,4.39592,2274.9,2274.5,3.0]
[1725745437510,4.39592,2274.9,2274.5,7.39655]
[1725745437713,4.39592,2274.9,2274.5,7.48447252]
[1725745438035,4.39592,2274.9,2274.5,9.75497252]
[1725745438234,4.39592,2274.9,2274.5,11.26258652]
[1725745440556,4.39592,2274.9,2274.5,7.39655]
[1725745440841,4.39552,2275.1,2274.5,7.39655]
[1725745440994,4.39564,2275.0,2274.6,2.4686]
[1725745443990,8.79102,2275.1,2274.6,6.86486]
[1725745444173,4.3955,2275.1,2274.7,4.470251]
[1725745444786,8.79104,2275.1,2274.7,4.470251]
[1725745445375,4.3955,2275.1,2274.7,8.95433586]
[1725745447674,5.97975493,2275.3,2274.7,8.95433586]
[1725745447675,4.39523,2275.2,2274.7,8.95433586]
[1725745447981,4.39551,2275.1,2274.7,4.470251]
[1725745448192,4.39523,2275.2,2274.8,1.1335201]
[1725745449800,8.79054,2275.2,2274.8,1.1335201]
[1725745449956,4.39546,2275.1,2274.8,1.1335201]
[1725745451657,4.39576,2275.0,2274.5,0.92457748]
[1725745451900,4.39581,2274.9,2274.4,7.78980748]
[1725745452104,4.39581,2274.9,2274.4,12.18647748]
[1725745452302,4.39581,2274.9,2274.5,1.40088526]
[1725745453186,4.39581,2274.9,2274.5,4.40088526]
[1725745455404,4.39581,2274.9,2274.5,5.32546274]
[1725745455777,4.39581,2274.9,2274.5,4.40088526]
[1725745456001,4.39581,2274.9,2274.5,5.32546274]
[1725745459297,13.40964493,2275.3,2274.5,5.32546274]
[1725745459298,2.05494318,2275.1,2274.5,3.0]
[1725745459621,4.39637,2274.6,2274.3,3.92457748]
[1725745462283,4.39637,2274.6,2274.3,3.0]
[1725745462833,4.39637,2274.6,2274.3,5.18085074]
[1725745463329,4.39637,2274.6,2274.3,4.25627326]
[1725745463829,4.39637,2274.6,2274.3,5.18085074]
[1725745464836,4.39637,2274.6,2274.3,4.25627326]
[1725745468299,4.39637,2274.6,2274.3,1.25627326]
[1725745481178,4.39637,2274.6,2274.2,8.32169748]
[1725745481385,4.39637,2274.6,2274.2,7.39712]
[1725745482269,1.58461493,2274.9,2274.2,3.0]
[1725745482270,4.39619,2274.7,2274.2,3.0]
[1725745482473,4.39653,2274.6,2274.2,3.0]
[1725745482991,4.39659,2274.5,2274.2,3.0]
[1725745488606,4.39682,2274.4,2274.2,3.0]
[1725745488812,4.39682,2274.4,2274.1,3.4411]
[1725745489864,4.39682,2274.4,2274.1,3.0]
[1725745490555,4.39744,2274.1,2273.7,12.59407669]
[1725745490737,8.7949,2274.1,2273.7,4.27949921]
[1725745490922,8.79491,2274.1,2273.7,4.27949921]
[1725745491259,4.39744,2274.1,2273.7,4.27949921]
[1725745491817,4.39744,2274.1,2273.8,3.0]
[1725745492015,8.79488,2274.1,2273.8,3.0]
[1725745492322,4.39754,2274.0,2273.8,3.0]
[1725745492960,4.39754,2274.0,2273.6,5.417]
[1725745494063,4.39754,2274.0,2273.6,7.11310226]
[1725745495561,4.39744,2274.1,2273.6,5.417]
[1725745495562,4.39773,2273.9,2273.6,5.417]
[1725745495860,4.39773,2273.9,2273.6,3.0]
[1725745496052,4.39773,2273.9,2273.5,3.92457748]
[1725745496769,4.39773,2273.9,2273.5,3.0]
[1725745497277,4.39773,2273.9,2273.5,3.92457748]
[1725745497439,4.39773,2273.9,2273.5,3.0]
[1725745497635,4.39773,2273.9,2273.5,3.92457748]
[1725745497835,4.39773,2273.9,2273.5,3.0]
[1725745498039,8.79562,2273.9,2273.5,3.0]
[1725745498348,4.39773,2273.9,2273.5,3.0]
[1725745498741,8.79557,2273.9,2273.5,3.92457748]
[1725745499076,8.79555,2273.9,2273.5,3.0]
[1725745499437,4.39773,2273.9,2273.5,3.0]
[1725745501244,8.79556,2273.9,2273.5,3.0]
[1725745502886,4.39831,2273.6,2273.5,3.0]
[1725745503054,4.39831,2273.6,2273.3,3.0]
[1725745503587,4.39813,2273.7,2273.3,4.21651126]
[1725745508281,1.58461493,2273.9,2273.3,3.0]
[1725745508488,1.58461493,2273.9,2273.2,2.4601]
[1725745508489,4.39845,2273.6,2273.2,5.4601]
[1725745508783,4.39796,2273.8,2273.2,5.4601]
[1725745508987,1.58461493,2273.9,2273.2,5.4601]
[1725745509345,1.58461493,2273.9,2273.2,3.0]
[1725745509546,4.39908,2273.2,2272.9,1.36557748]
[1725745509784,4.39908,2273.2,2272.9,0.441]
[1725745511601,4.39908,2273.2,2272.9,3.441]
[1725745513012,4.39908,2273.2,2272.9,0.441]
[1725745513566,4.3993,2273.1,2272.8,2.4601]
[1725745520024,4.3993,2273.1,2272.7,3.0]
[1725745526522,4.39908,2273.2,2272.7,3.0]
[1725745526736,4.39908,2273.2,2272.8,2.4806]
[1725745527105,4.39908,2273.2,2272.8,6.88044]
[1725745527341,4.39908,2273.2,2272.9,3.0]
[1725745527542,4.39929,2273.1,2272.9,3.0]
[1725745528048,4.39929,2273.1,2272.8,5.4806]
[1725745528544,8.79826,2273.2,2272.8,5.4806]
[1725745528734,4.39908,2273.2,2272.8,5.4806]
[1725745529232,4.3994,2273.1,2272.8,3.0]
[1725745529438,4.3994,2273.1,2272.7,3.784106]
[1725745530008,4.3994,2273.1,2272.7,8.184126]
[1725745530434,4.39908,2273.2,2272.9,2.4806]
[1725745530628,4.39908,2273.2,2272.9,5.4806]
[1725745549882,4.39947,2273.0,2272.9,3.0]
[1725745550045,4.39947,2273.0,2272.7,0.92254385]
[1725745550046,4.39966,2272.9,2272.6,3.441]
[1725745550250,4.39966,2272.9,2272.6,0.441]
[1725745550454,8.79947,2272.9,2272.6,0.441]
[1725745550788,4.39987,2272.8,2272.6,0.441]
[1725745552986,4.39987,2272.8,2272.5,0.441]
[1725745554364,4.39987,2272.8,2272.5,4.36354385]
[1725745556077,4.39987,2272.8,2272.5,6.80014385]
[1725745557169,4.39987,2272.8,2272.5,6.35914385]
[1725745558706,8.79984,2272.8,2272.5,3.92254385]
[1725745559203,4.40006,2272.7,2272.5,3.92254385]
[1725745562192,4.3997,2272.9,2272.6,2.2576]
[1725745562396,4.3997,2272.9,2272.6,5.2576]
[1725745563407,8.79953,2272.9,2272.6,5.2576]
[1725745563573,8.79953,2272.9,2272.6,3.0]
[1725745563775,8.79953,2272.9,2272.5,3.92254385]
[1725745564412,4.39998,2272.8,2272.5,3.92254385]
[1725745567175,4.39998,2272.8,2272.5,3.0]
[1725745570292,4.4001,2272.7,2272.5,3.0]
[1725745572545,4.40024,2272.6,2272.5,3.0]
[1725745580293,4.40005,2272.7,2272.5,3.0]
[1725745581160,8.80026,2272.7,2272.5,3.0]
[1725745581380,4.40005,2272.7,2272.3,3.0]
[1725745581581,4.40005,2272.7,2272.3,4.54231839]
[1725745582451,8.80019,2272.7,2272.3,4.54231839]
[1725745582653,4.40005,2272.7,2272.3,4.54231839]
[1725745584491,4.40005,2272.7,2272.3,3.0]
[1725745584698,4.40005,2272.7,2271.9,0.92254385]
[1725745584699,4.40091,2272.3,2271.9,0.92254385]
[1725745584991,1.58461493,2272.5,2271.7,3.40394385]
[1725745584992,4.40137,2272.1,2271.7,3.40394385]
[1725745585152,8.80238,2272.2,2271.7,8.90938658]
[1725745585470,8.80238,2272.2,2271.7,7.98684273]
[1725745585471,4.40123,2272.1,2271.7,7.98684273]
[1725745586176,4.40123,2272.1,2271.7,2.4814]
[1725745587106,4.40123,2272.1,2271.7,5.4814]
[1725745588292,8.80257,2272.1,2271.7,3.0]
[1725745588494,4.40123,2272.1,2271.7,3.0]
[1725745588666,8.80255,2272.1,2271.7,3.0]
[1725745589681,4.40163,2271.9,2271.7,3.0]
[1725745590006,4.40163,2271.9,2271.6,3.0]
[1725745591068,4.40163,2271.9,2271.5,5.4814]
[1725745591269,4.40182,2271.8,2271.5,5.4814]
[1725745591478,4.40182,2271.8,2271.6,3.0]
[1725745594095,4.40201,2271.7,2271.4,3.0]
[1725745595077,4.40201,2271.7,2271.2,8.24783385]
[1725745595483,4.40201,2271.7,2271.2,7.32529]
[1725745596478,4.40201,2271.7,2271.3,3.0]
[1725745598815,5.98582493,2272.1,2271.5,2.4814]
[1725745598816,4.40155,2272.0,2271.5,2.4814]
[1725745599035,4.40155,2272.0,2271.6,6.80957]
[1725745599179,4.40155,2272.0,2271.8,2.4075]
[1725745599375,11.83122,2272.1,2271.8,2.4075]
[1725745600381,7.43,2272.1,2271.8,7.79015]
[1725745600581,7.43,2272.1,2271.9,3.0]
[1725745601922,5.98515493,2272.5,2272.1,4.40111]
[1725745602215,5.98477493,2272.7,2272.2,9.80847]
[1725745602552,5.98477493,2272.7,2272.2,14.20938]
[1725745602850,5.98477493,2272.7,2272.2,7.4009]
[1725745603406,5.98477493,2272.7,2272.3,2.4075]
[1725745603407,4.40016,2272.7,2272.3,2.4075]
[1725745604139,4.93329158,2272.8,2272.3,7.9312606]
[1725745604343,4.93329158,2272.8,2272.4,3.0]
[1725745605209,4.93329158,2272.8,2272.4,7.4006]
[1725745605868,0.53341158,2272.8,2272.5,2.4075]
[1725745606077,11.82968,2272.9,2272.5,3.94068606]
[1725745606384,11.82968,2272.9,2272.6,3.0]
[1725745606673,4.93009883,2273.0,2272.6,3.0]
[1725745606859,4.39947,2273.0,2272.6,3.0]
[1725745607050,6.51731651,2273.1,2272.7,2.4075]
[1725745607274,13.94409376,2273.4,2272.8,2.4075]
[1725745607476,13.94409376,2273.4,2272.8,5.4075]
[1725745607477,4.3989,2273.3,2272.8,5.4075]
[1725745607966,5.98346493,2273.4,2272.9,4.39964]
[1725745608181,10.38234493,2273.4,2273.0,3.0]
[1725745608344,4.39902,2273.3,2273.0,3.0]
[1725745608537,4.39902,2273.3,2272.9,3.0]
[1725745611045,10.91568651,2273.4,2272.9,7.39964]
[1725745611270,5.98342493,2273.4,2272.9,8.93375316]
[1725745613570,4.39881,2273.4,2272.9,8.93375316]
[1725745614081,8.7976,2273.4,2272.9,8.93375316]
[1725745614983,8.7976,2273.4,2273.0,2.35]
[1725745615541,4.39879,2273.4,2273.0,2.35]
[1725745615772,8.7976,2273.4,2273.0,3.47837532]
[1725745615983,4.39879,2273.4,2273.1,3.0]
[1725745616651,8.7976,2273.4,2273.1,3.0]
[1725745616877,4.39879,2273.4,2273.1,3.0]
[1725745617581,8.7976,2273.4,2273.1,3.0]
[1725745618092,1.58461493,2273.4,2272.7,2.35]
[1725745618390,1.58461493,2273.4,2272.3,8.546]
[1725745618391,1.58461493,2272.8,2272.0,3.27254385]
[1725745618551,1.58461493,2272.8,2272.1,0.90578196]
[1725745618552,4.40046,2272.5,2272.1,0.90578196]
[1725745619678,4.40046,2272.5,2272.1,3.90578196]
[1725745623999,4.40046,2272.5,2272.1,8.30698196]
[1725745624511,4.39958,2273.0,2272.4,4.40059]
[1725745624727,4.39929,2273.1,2272.6,4.40022]
[1725745625088,4.39929,2273.1,2272.7,3.0]
[1725745625393,4.39929,2273.1,2272.7,7.40003]
[1725745627211,4.3992,2273.2,2272.8,6.68884]
[1725745627527,4.39891,2273.3,2272.9,1.408887]
[1725745627686,4.39891,2273.3,2272.9,4.408887]
[1725745632267,4.39885,2273.4,2273.0,6.68843]
[1725745632411,4.39885,2273.4,2273.1,3.0]
[1725745633946,4.39879,2273.4,2273.1,3.0]
[1725745635057,4.39846,2273.6,2273.1,4.1097317]
[1725745635261,4.39846,2273.6,2273.1,8.5089217]
[1725745635561,4.39846,2273.6,2273.2,6.68807]
[1725745635859,4.39846,2273.6,2273.3,3.0]
[1725745637049,8.79687,2273.6,2273.3,3.0]
[1725745637256,4.39841,2273.6,2273.4,0.968807]
[1725745637945,8.79684,2273.6,2273.4,0.968807]
[1725745638264,4.39841,2273.6,2273.4,0.968807]
[1725745639761,8.79682,2273.6,2273.3,3.0]
[1725745639939,8.79682,2273.6,2273.2,5.289]
[1725745640466,4.39841,2273.6,2273.2,5.289]
[1725745642862,4.39841,2273.6,2273.2,9.68808]
[1725745645068,5.98256493,2273.8,2273.3,4.39883]
[1725745645069,4.39795,2273.8,2273.3,4.39883]
[1725745645254,4.39795,2273.8,2273.4,4.408691]
[1725745646362,4.39795,2273.8,2273.4,8.807371]
[1725745646869,4.39795,2273.8,2273.5,2.3687]
[1725745649857,4.39776,2273.9,2273.5,6.76717]
[1725745650060,4.39776,2273.9,2273.6,3.0]
[1725745650271,13.41193493,2274.2,2273.7,0.976712]
[1725745650272,4.39754,2274.0,2273.7,0.976712]
[1725745652096,4.39754,2274.0,2273.8,2.3687]
[1725745652243,4.39754,2274.0,2273.8,5.3687]
[1725745652552,4.39734,2274.1,2273.8,5.3687]
[1725745652759,4.39734,2274.1,2273.8,6.4430512]
[1725745655792,5.98176493,2274.2,2273.8,6.4430512]
[1725745655961,4.39715,2274.2,2273.8,6.4430512]
[1725745656166,4.39715,2274.2,2273.9,2.3687]
[1725745656387,4.39715,2274.2,2273.9,5.3687]
[1725745656687,5.98154493,2274.4,2274.0,1.38409612]
[1725745656688,4.39704,2274.3,2274.0,1.38409612]
[1725745656989,4.39704,2274.3,2274.0,4.38409612]
[1725745657154,5.98154493,2274.4,2274.0,4.38409612]
[1725745657354,10.37843493,2274.4,2274.0,4.38409612]
[1725745657567,10.37843493,2274.4,2274.1,1.11505061]
[1725745659202,4.397,2274.3,2274.1,1.11505061]
[1725745659601,4.397,2274.3,2274.0,3.0]
[1725745659808,4.397,2274.3,2273.9,5.3687]
[1725745660623,8.79381,2274.4,2273.9,7.3977]
[1725745660905,8.79381,2274.4,2274.0,2.2932]
[1725745661108,4.39689,2274.4,2274.0,5.2932]
[1725745661313,4.39689,2274.4,2274.1,1.26909]
[1725745661611,4.39689,2274.4,2274.1,4.26909]
[1725745663277,4.39689,2274.4,2274.2,2.2932]
[1725745663478,8.79375,2274.4,2274.2,3.0]
[1725745663902,4.39686,2274.4,2274.3,0.426909]
[1725745664097,4.39686,2274.4,2274.0,5.2932]
[1725745664378,4.39686,2274.4,2274.0,3.0]
[1725745668242,4.39686,2274.4,2274.1,2.2932]
[1725745672354,4.39696,2274.3,2274.0,3.0]
[1725745674075,4.39696,2274.3,2274.1,5.2932]
[1725745674257,4.39696,2274.3,2274.1,2.2932]
[1725745674663,4.39696,2274.3,2274.1,3.262288]
[1725745674849,4.39696,2274.3,2274.2,3.0]
[1725745675358,4.39696,2274.3,2274.1,2.2932]
[1725745675547,4.39696,2274.3,2273.9,3.0]
[1725745676154,4.39696,2274.3,2273.8,3.0]
[1725745676155,4.39716,2274.2,2273.8,3.0]
[1725745680885,4.39753,2274.1,2273.8,3.0]
[1725745681117,4.39753,2274.1,2273.7,3.0]
[1725745681118,4.39755,2274.0,2273.7,3.0]
[1725745682204,5.98137493,2274.4,2273.7,3.0]
[1725745682205,8.79559,2273.9,2273.7,3.0]
[1725745682395,8.79559,2273.9,2273.3,8.77237935]
[1725745682396,4.398,2273.8,2273.3,5.32036623]
[1725745682599,4.39813,2273.7,2273.3,5.32036623]
[1725745683487,4.39813,2273.7,2273.4,3.0]
[1725745683882,4.398,2273.8,2273.4,3.0]
[1725745684291,8.79602,2273.8,2273.4,3.0]
[1725745684715,4.398,2273.8,2273.4,3.0]
[1725745684893,4.398,2273.8,2273.4,4.63654156]
[1725745685697,8.79605,2273.8,2273.4,4.63654156]
[1725745686624,8.7961,2273.8,2273.4,4.63654156]
[1725745686996,4.39849,2273.6,2273.4,3.0]
[1725745687213,4.39849,2273.6,2273.2,0.92158623]
[1725745687214,4.3985,2273.5,2273.2,3.0]
[1725745688121,4.3985,2273.5,2273.1,0.92158623]
[1725745688122,4.39885,2273.4,2273.1,3.92158623]
[1725745688294,4.39885,2273.4,2273.1,3.0]
[1725745688540,4.39895,2273.3,2273.0,3.92158623]
[1725745689363,4.39895,2273.3,2272.9,0.92158623]
[1725745689539,4.39909,2273.2,2272.9,0.92158623]
[1725745689722,4.39909,2273.2,2272.8,9.60092544]
[1725745690809,4.39909,2273.2,2272.9,3.0]
[1725745691745,4.3989,2273.3,2272.9,3.0]
[1725745692738,4.3989,2273.3,2272.9,7.39966]
[1725745695321,5.98309493,2273.6,2272.9,7.39966]
[1725745695322,4.39871,2273.4,2272.9,7.39966]
[1725745695725,4.39871,2273.4,2272.9,11.79922]
[1725745696149,4.39898,2273.3,2272.9,7.39956]
[1725745696355,4.39898,2273.3,2272.9,3.0]
[1725745700990,4.3992,2273.2,2272.9,3.0]
[1725745701201,4.39927,2273.1,2272.9,3.0]
[1725745701408,4.39949,2273.0,2272.6,7.39]
[1725745701607,4.39969,2272.9,2272.6,7.39]
[1725745702817,4.39969,2272.9,2272.7,3.0]
[1725745704784,8.7997,2272.8,2272.7,3.0]
[1725745705120,4.40018,2272.7,2272.3,3.0]
[1725745705896,4.40027,2272.6,2272.3,3.0]
[1725745706211,4.40055,2272.5,2272.3,3.0]
[1725745706413,4.40055,2272.5,2272.2,3.0]
[1725745712020,4.40079,2272.4,2272.2,3.0]
[1725745712528,4.40082,2272.3,2272.2,3.0]
[1725745712724,8.80158,2272.4,2272.1,4.27949921]
[1725745713014,4.40085,2272.3,2272.1,4.27949921]
[1725745714620,4.40085,2272.3,2272.2,3.0]
[1725745716026,4.40055,2272.5,2272.2,3.0]
[1725745716229,4.40074,2272.4,2272.2,3.0]
[1725745718845,4.40074,2272.4,2271.9,8.80288]
[1725745718846,4.40074,2272.4,2272.0,3.0]
[1725745722552,4.40055,2272.5,2272.0,7.40131]
[1725745722713,4.40025,2272.6,2272.2,2.3188]
[1725745722921,9.48644318,2272.9,2272.3,4.40072]
[1725745722922,4.40013,2272.7,2272.3,4.40072]
[1725745723143,11.82984,2272.9,2272.5,2.3188]
[1725745723363,7.43,2272.9,2272.5,6.71922]
[1725745723659,7.43,2272.9,2272.6,3.0]
[1725745727563,4.39948,2273.0,2272.6,3.0]
[1725745732589,4.39948,2273.0,2272.7,2.3188]
[1725745744805,4.40001,2272.8,2272.6,3.0]
[1725745744999,4.40001,2272.8,2272.7,3.0]
[1725745745345,4.40001,2272.8,2272.5,2.3395]
[1725745753455,4.40001,2272.8,2272.5,3.84575462]
[1725745753658,4.40001,2272.8,2272.6,3.0]
[1725745756605,4.40001,2272.8,2272.5,1.50625462]
[1725745756785,4.40001,2272.8,2272.5,3.84575462]
[1725745756986,4.40001,2272.8,2272.6,3.0]
[1725745758103,4.40005,2272.7,2272.6,3.0]
[1725745759608,4.39985,2272.9,2272.6,3.0]
[1725745759765,4.39986,2272.8,2272.6,3.0]
[1725745768602,8.7997,2272.9,2272.6,3.0]
[1725745769688,4.39989,2272.8,2272.6,3.0]
[1725745775137,4.39989,2272.8,2272.6,3.92158623]
[1725745775343,8.79966,2272.9,2272.6,3.0]
[1725745776001,4.39981,2272.9,2272.6,3.0]
[1725745776201,4.39981,2272.9,2272.6,3.92158623]
[1725745777201,4.39981,2272.9,2272.6,3.0]
[1725745777408,8.79957,2272.9,2272.6,3.0]
[1725745777894,8.79957,2272.9,2272.6,3.92158623]
[1725745778095,4.39976,2272.9,2272.6,3.92158623]
[1725745778296,4.39976,2272.9,2272.6,3.0]
[1725745778497,8.79952,2272.9,2272.6,3.0]
[1725745778791,8.79952,2272.9,2272.6,3.92158623]
[1725745779020,4.39976,2272.9,2272.6,3.92158623]
[1725745779832,4.39975,2272.9,2272.6,3.92158623]
[1725745788055,4.3995,2273.0,2272.6,3.92158623]
[1725745791374,4.39976,2272.9,2272.6,3.0]
[1725745791547,4.39976,2272.9,2272.6,3.92158623]
[1725745792245,4.3995,2273.0,2272.6,3.92158623]
[1725745792449,8.79916,2273.0,2272.6,3.92158623]
[1725745792671,4.3991,2273.2,2272.6,3.92158623]
[1725745792843,4.3991,2273.2,2272.5,1.38237935]
[1725745792844,0.55,2273.1,2272.5,3.92158623]
[1725745793177,4.39998,2272.8,2272.6,3.0]
[1725745793483,4.39998,2272.8,2272.5,0.92158623]
[1725745793628,4.39973,2272.9,2272.4,3.92158623]
[1725745793629,8.80088,2272.5,2272.4,3.92158623]
[1725745793834,4.40082,2272.3,2272.2,0.92158623]
[1725745794060,4.40121,2272.1,2272.0,0.92158623]
[1725745794265,4.4016,2271.9,2271.8,0.92158623]
[1725745794470,4.4016,2271.9,2271.5,2.31518161]
[1725745794471,5.98621493,2271.9,2271.5,0.92158623]
[1725745794636,0.46948336,2272.2,2271.0,0.92158623]
[1725745794637,1.58461493,2271.6,2271.0,0.92158623]
[1725745794843,1.58461493,2271.6,2270.9,5.32492623]
[1725745794844,4.40257,2271.4,2270.9,5.32492623]
[1725745795110,4.40257,2271.4,2270.9,5.75647156]
[1725745795111,8.80525,2271.4,2270.9,5.75647156]
[1725745795251,4.40257,2271.4,2270.9,5.75647156]
[1725745796306,5.98769493,2271.2,2270.6,3.34178623]
[1725745796451,5.98769493,2271.2,2270.5,4.27949921]
[1725745797494,4.40337,2271.0,2270.6,2.4202]
[1725745797795,8.80619,2271.2,2270.6,5.4202]
[1725745797992,8.80619,2271.2,2270.6,7.27103892]
[1725745798175,4.40317,2271.1,2270.6,7.27103892]
[1725745798482,4.40317,2271.1,2270.6,3.0]
[1725745799363,4.40334,2271.0,2270.6,3.0]
[1725745800392,4.40308,2271.2,2270.6,7.40399]
[1725745800710,4.40265,2271.4,2270.8,4.40372]
[1725745800866,8.8046,2271.6,2270.9,7.40352]
[1725745801387,4.40201,2271.7,2271.1,4.40297]
[1725745801585,4.40201,2271.7,2270.9,4.416944]
[1725745801586,4.40256,2271.5,2271.2,3.0]
[1725745801763,4.40256,2271.5,2271.0,3.0]
[1725745801963,4.40226,2271.6,2271.0,3.0]
[1725745802307,4.40192,2271.8,2271.1,4.40303]
[1725745802308,5.98660493,2271.7,2271.1,4.40303]
[1725745802512,1.58461493,2271.7,2271.2,3.440303]
[1725745802667,1.58461493,2271.7,2271.2,7.843113]
[1725745803015,7.43,2271.9,2271.4,6.76476]
[1725745803187,9.01461493,2271.9,2271.5,3.0]
[1725745803661,13.41622493,2271.9,2271.5,3.0]
[1725745803864,7.43,2271.9,2271.5,0.976492]
[1725745804064,7.43,2271.9,2271.5,3.976492]
[1725745805094,4.40106,2272.2,2271.6,4.40212]
[1725745805301,5.98567493,2272.2,2271.7,3.0]
[1725745805985,1.58461493,2272.2,2271.7,8.6800082]
[1725745806188,5.98531493,2272.4,2271.8,6.76397]
[1725745806523,5.98531493,2272.4,2271.9,3.0]
[1725745806694,5.98531493,2272.4,2271.9,7.40148]
[1725745806900,5.98531493,2272.4,2271.9,8.94583182]
[1725745807228,1.58461493,2272.4,2271.9,8.94583182]
[1725745808694,13.88677318,2272.6,2272.0,4.40139]
[1725745808893,13.88677318,2272.6,2272.1,3.0]
[1725745809096,13.88677318,2272.6,2272.1,7.40116]
[1725745809097,5.98494493,2272.6,2272.1,7.40116]
[1725745809306,5.98494493,2272.6,2272.1,8.73585018]
[1725745811137,5.98460493,2272.8,2272.2,2.3622]
[1725745811295,5.98460493,2272.8,2272.3,4.40079]
[1725745811497,5.98460493,2272.8,2272.4,3.0]
[1725745812410,5.98460493,2272.8,2272.4,3.976292]
[1725745814233,17.81377493,2273.0,2272.5,4.40043]
[1725745814409,17.81377493,2273.0,2272.6,3.0]
[1725745814739,10.38377493,2273.0,2272.6,3.0]
[1725745815136,5.98418493,2273.0,2272.6,3.0]
[1725745816015,5.98418493,2273.0,2272.6,3.8376722]
[1725745816544,5.98418493,2273.0,2272.6,6.1998722]
[1725745817504,4.39969,2272.9,2272.6,3.8376722]
[1725745818046,5.98418493,2273.0,2272.6,3.8376722]
[1725745819629,4.39957,2273.0,2272.6,3.8376722]
[1725745819828,4.39957,2273.0,2272.7,0.82379422]
[1725745822471,4.87097825,2273.2,2272.7,5.22382422]
[1725745822669,10.38302493,2273.2,2272.8,3.0]
[1725745822968,5.98376493,2273.2,2272.8,5.3222]
[1725745823754,10.38294493,2273.2,2272.8,5.3222]
[1725745824579,10.38293493,2273.2,2272.8,5.3222]
[1725745825475,7.43,2273.4,2272.8,10.86031964]
[1725745825638,4.39861,2273.5,2273.0,4.39936]
[1725745825836,4.39845,2273.6,2273.2,2.3222]
[1725745826074,4.39842,2273.6,2273.2,2.3222]
[1725745826293,8.79684,2273.6,2273.2,3.294352]
[1725745826446,8.79684,2273.6,2273.3,3.0]
[1725745826789,8.79683,2273.6,2273.3,3.0]
[1725745827642,4.39852,2273.5,2273.3,3.0]
[1725745828684,4.39852,2273.5,2273.1,3.0]
[1725745829280,4.39852,2273.5,2273.1,3.972152]
[1725745831844,0.08311879,2273.4,2273.1,3.972152]
[1725745833367,0.08311879,2273.4,2273.1,3.0]
[1725745838382,4.39852,2273.5,2273.1,3.0]
[1725745838753,0.08246958,2273.4,2273.1,3.0]
[1725745839397,4.39852,2273.5,2273.1,3.0]
[1725745839856,0.08246958,2273.4,2273.1,3.0]
[1725745840244,4.39852,2273.5,2273.1,3.0]
[1725745840449,4.3984,2273.6,2273.1,7.39922]
[1725745840647,0.08246958,2273.4,2273.2,4.39905]
[1725745840882,4.3984,2273.6,2273.3,3.0]
[1725745843092,0.0824679,2273.5,2273.3,3.0]
[1725745843254,0.0824679,2273.5,2273.2,7.39898]
[1725745843456,0.0824679,2273.5,2273.2,8.811014]
[1725745855191,4.39812,2273.7,2273.2,8.811014]
[1725745855399,0.08257989,2273.4,2273.2,8.811014]
[1725745855554,4.39812,2273.7,2273.2,8.811014]
[1725745855759,4.39812,2273.7,2273.2,11.199314]
[1725745855760,0.08244771,2273.3,2273.2,11.199314]
[1725745855986,4.39812,2273.7,2273.2,11.199314]
[1725745856167,0.08249391,2273.3,2273.2,11.199314]
[1725745856370,4.39812,2273.7,2273.2,11.199314]
[1725745856694,0.08249391,2273.3,2273.2,9.78728]
[1725745856859,4.39812,2273.7,2273.2,9.78728]
[1725745857061,0.08250932,2273.3,2273.2,9.78728]
[1725745857257,4.39812,2273.7,2273.2,9.78728]
[1725745857462,0.07976571,2273.3,2273.2,9.78728]
[1725745857687,4.39812,2273.7,2273.2,11.205924]
[1725745857898,4.39812,2273.7,2273.2,9.78728]
[1725745858260,0.08016223,2273.6,2273.2,9.78728]
[1725745863114,4.47849223,2273.6,2273.2,9.78728]
[1725745866179,0.08016223,2273.6,2273.3,4.39885]
[1725745866507,0.08016223,2273.6,2273.4,3.0]
[1725745873307,4.39794,2273.8,2273.4,3.0]